bitfinex-derivatives/quotes_BTCF0:USTF0_20251215
["timestamp","ask_amount","ask_price","bid_price","bid_amount"]
[1765824055794,0.67823,85681.0,85680.0,0.01640365]
[1765824056388,0.67823,85681.0,85680.0,0.00017508]
[1765824056588,0.32951,85671.0,85670.0,0.3608]
[1765824056797,0.67823,85671.0,85670.0,0.3608]
[1765824057003,0.21547,85680.0,85670.0,0.37716849]
[1765824057198,0.21547,85680.0,85679.0,0.0116717]
[1765824057402,0.67823,85691.0,85690.0,0.0116701]
[1765824057601,0.17,85691.0,85690.0,0.7263901]
[1765824058395,0.67823,85683.0,85682.0,0.00017508]
[1765824060897,0.32951,85683.0,85682.0,0.35723508]
[1765824061098,0.67823,85683.0,85682.0,0.00017508]
[1765824061305,0.72823,85683.0,85682.0,0.00017508]
[1765824061701,0.0116736,85665.0,85662.0,0.3608]
[1765824061902,0.3592,85664.0,85663.0,0.0116738]
[1765824062210,0.2104135,85666.0,85662.0,0.3608]
[1765824062211,0.7298138,85663.0,85662.0,0.3608]
[1765824062508,0.3708726,85672.0,85662.0,0.37700149]
[1765824062811,0.0116735,85666.0,85663.0,0.0116738]
[1765824063004,0.35937508,85676.0,85675.0,0.68383]
[1765824063204,0.00017508,85676.0,85675.0,0.71847]
[1765824063409,0.00017508,85676.0,85664.0,0.11673446]
[1765824063712,0.71814,85663.0,85662.0,0.37900149]
[1765824063910,0.55794,85666.0,85665.0,0.35767]
[1765824064108,0.19874,85666.0,85665.0,0.71847]
[1765824064309,0.71831508,85676.0,85675.0,0.0116722]
[1765824064517,0.72998718,85676.0,85675.0,0.3608]
[1765824064809,0.71831508,85676.0,85665.0,0.3608]
[1765824065112,0.71814,85672.0,85671.0,0.0116726]
[1765824065315,0.71814,85672.0,85671.0,0.3724726]
[1765824066014,0.00117508,85676.0,85675.0,0.6955022]
[1765824066530,0.00117508,85676.0,85674.0,0.3608]
[1765824066531,0.71814,85675.0,85674.0,0.3608]
[1765824066728,0.7298132,85668.0,85667.0,0.3608]
[1765824066917,0.71814,85668.0,85667.0,0.3608]
[1765824067125,0.55794,85670.0,85669.0,0.35767]
[1765824067327,0.55794,85670.0,85668.0,0.0116732]
[1765824067328,0.71814,85669.0,85668.0,0.0116732]
[1765824067628,0.35937508,85676.0,85675.0,0.3693422]
[1765824067825,0.00017508,85676.0,85675.0,1.0563022]
[1765824068818,0.00233379,85698.0,85697.0,0.6954992]
[1765824069122,0.17233379,85698.0,85697.0,0.3608]
[1765824069326,0.89047379,85698.0,85697.0,0.3608]
[1765824070830,0.71814,85690.0,85689.0,0.00017508]
[1765824071028,0.02,85690.0,85689.0,0.68400508]
[1765824072126,0.02,85690.0,85689.0,0.80070549]
[1765824072324,0.021,85690.0,85689.0,0.80070549]
[1765824072526,0.73914,85690.0,85689.0,0.80070549]
[1765824072740,0.3812,85690.0,85689.0,0.80070549]
[1765824073233,0.3812,85690.0,85689.0,0.68400508]
[1765824073733,0.74014,85690.0,85689.0,0.00017508]
[1765824073924,0.73914,85690.0,85689.0,0.00017508]
[1765824074624,0.73814,85690.0,85689.0,0.00017508]
[1765824075624,0.73914,85690.0,85689.0,0.35784508]
[1765824075826,0.73914,85690.0,85689.0,0.68400508]
[1765824076033,0.022,85690.0,85689.0,0.68400508]
[1765824076934,0.021,85690.0,85689.0,0.68400508]
[1765824077129,0.020825,85690.0,85689.0,1.53890549]
[1765824077329,0.00233379,85698.0,85697.0,0.6954992]
[1765824077533,0.00233379,85698.0,85697.0,1.0562992]
[1765824077928,9e-08,85698.0,85697.0,1.17299961]
[1765824078128,0.02923924,85758.0,85697.0,1.17299961]
[1765824078129,0.71814,85736.0,85735.0,0.0116638]
[1765824078334,0.71814,85736.0,85734.0,0.3608]
[1765824078335,0.729804,85735.0,85734.0,0.3608]
[1765824078635,0.90814,85735.0,85734.0,0.74616322]
[1765824079222,0.90814,85735.0,85734.0,0.73449902]
[1765824079624,0.90814,85735.0,85734.0,1.06065902]
[1765824079625,0.19,85735.0,85734.0,1.06065902]
[1765824079825,0.19,85735.0,85734.0,1.17729817]
[1765824080129,0.193,85735.0,85734.0,1.17729817]
[1765824080335,0.196,85735.0,85734.0,1.17729817]
[1765824080530,0.4052,85735.0,85734.0,1.06065902]
[1765824080835,0.76114,85735.0,85734.0,0.37682902]
[1765824081036,0.76314,85735.0,85734.0,0.37682902]
[1765824081526,0.76014,85735.0,85734.0,0.37682902]
[1765824081732,0.76214,85735.0,85734.0,0.37682902]
[1765824082834,0.042,85735.0,85734.0,1.06065902]
[1765824083033,0.044,85735.0,85734.0,1.06065902]
[1765824083435,0.044,85735.0,85734.0,1.17729817]
[1765824083737,0.738,85763.0,85734.0,1.17729817]
[1765824083738,0.0116611,85757.0,85736.0,0.1798]
[1765824084034,0.7298014,85755.0,85754.0,0.3608]
[1765824084232,0.88814,85755.0,85754.0,0.3608]
[1765824085033,0.17,85755.0,85754.0,1.04463]
[1765824085435,0.17,85755.0,85754.0,1.16124195]
[1765824085632,0.002,85757.0,85756.0,0.68383]
[1765824086232,0.0116586,85775.0,85771.0,0.0116591]
[1765824086436,0.90814,85775.0,85774.0,0.3608]
[1765824086639,0.90814,85775.0,85772.0,0.3608]
[1765824086640,0.71814,85773.0,85772.0,0.3608]
[1765824086838,0.90814,85773.0,85772.0,0.3608]
[1765824087444,0.71814,85765.0,85764.0,0.00017495]
[1765824087744,0.71814,85735.0,85724.0,0.36089727]
[1765824088043,0.3608,85748.0,85747.0,0.68383]
[1765824088228,0.3608,85748.0,85740.0,0.0116633]
[1765824088229,0.72,85748.0,85740.0,0.0116633]
[1765824088434,0.72,85748.0,85743.0,0.0116629]
[1765824088435,0.3592,85744.0,85743.0,0.0116629]
[1765824088835,0.3592,85744.0,85739.0,0.0116634]
[1765824089038,0.3592,85744.0,85736.0,0.20664]
[1765824089039,0.3592,85744.0,85742.0,0.011663]
[1765824089241,0.3608,85748.0,85747.0,0.0116624]
[1765824089434,0.3608,85748.0,85747.0,0.6954924]
[1765824089634,0.00017452,85752.0,85751.0,0.68383]
[1765824089635,0.35937452,85752.0,85751.0,0.68383]
[1765824089841,0.35937452,85752.0,85750.0,0.011662]
[1765824090043,0.72017452,85752.0,85750.0,0.09313587]
[1765824090229,0.0116627,85745.0,85744.0,0.11662963]
[1765824090434,0.36097452,85752.0,85745.0,0.0116627]
[1765824090634,0.36097452,85752.0,85751.0,0.0116619]
[1765824090831,0.36097452,85752.0,85751.0,0.6985619]
[1765824091038,0.00017452,85752.0,85751.0,0.6985619]
[1765824091449,0.3608,85771.0,85769.0,0.0116594]
[1765824091746,0.3608,85771.0,85751.0,0.12827793]
[1765824091747,0.0116593,85770.0,85765.0,0.0116599]
[1765824091941,0.19,85770.0,85761.0,0.0116605]
[1765824092133,0.19,85770.0,85754.0,0.3608]
[1765824092134,0.3608,85764.0,85754.0,0.11661603]
[1765824092339,0.34076,85762.0,85761.0,0.0116604]
[1765824092545,0.34076,85762.0,85761.0,0.6903704]
[1765824092546,0.19,85762.0,85761.0,0.6903704]
[1765824092843,0.19,85762.0,85753.0,0.00017495]
[1765824092844,0.69947,85756.0,85755.0,0.0116612]
[1765824093044,1.08027,85756.0,85753.0,0.00017495]
[1765824093249,0.69947,85754.0,85753.0,0.00017495]
[1765824093947,0.0116613,85755.0,85738.0,0.0116636]
[1765824094136,0.34076,85742.0,85736.0,0.20664]
[1765824094335,1.06027,85746.0,85745.0,0.0116627]
[1765824094848,0.69947,85752.0,85751.0,0.0116618]
[1765824095049,0.3608,85756.0,85736.0,0.20664]
[1765824095050,0.3608,85756.0,85755.0,0.0116613]
[1765824095350,0.3908,85756.0,85755.0,0.6903713]
[1765824095936,0.4024612,85756.0,85755.0,0.67871]
[1765824096141,0.3908,85756.0,85755.0,0.67871]
[1765824096544,0.37076,85756.0,85755.0,0.34695]
[1765824096738,0.34076,85754.0,85753.0,0.0116615]
[1765824096938,0.70156,85754.0,85745.0,0.73956]
[1765824097139,0.7132215,85754.0,85746.0,0.11661059]
[1765824097347,0.7132215,85754.0,85745.0,0.73956]
[1765824097348,0.70156,85754.0,85752.0,0.0116617]
[1765824097647,0.34076,85754.0,85752.0,0.0116617]
[1765824097849,0.01183555,85760.0,85759.0,0.34695]
[1765824098046,0.69947,85756.0,85755.0,0.001]
[1765824098239,0.71947,85756.0,85755.0,0.002]
[1765824098636,0.71947,85756.0,85755.0,0.001]
[1765824098841,0.71947,85756.0,85752.0,0.0116616]
[1765824098842,0.69947,85753.0,85752.0,0.0166616]
[1765824099242,0.69947,85753.0,85752.0,0.0166617]
[1765824099448,0.69947,85753.0,85752.0,0.0116617]
[1765824100139,0.69947,85753.0,85752.0,0.0136617]
[1765824101050,0.00017495,85760.0,85759.0,0.3586108]
[1765824101245,0.80964495,85760.0,85759.0,0.0116608]
[1765824102249,0.80964495,85760.0,85759.0,0.0126608]
[1765824102551,0.11017495,85760.0,85759.0,0.6913708]
[1765824103070,0.11017495,85760.0,85759.0,0.6943708]
[1765824104155,0.00233161,85778.0,85777.0,0.34695]
[1765824104353,0.19233161,85778.0,85777.0,0.67871]
[1765824105048,0.19233161,85778.0,85776.0,0.0116584]
[1765824105049,0.69947,85777.0,85776.0,0.0116584]
[1765824105246,0.76947,85777.0,85776.0,0.0116584]
[1765824105852,0.76947,85777.0,85773.0,0.0116588]
[1765824106157,0.69947,85776.0,85775.0,0.0116585]
[1765824106358,0.76947,85776.0,85775.0,0.0116585]
[1765824106756,0.7111286,85775.0,85773.0,0.06227389]
[1765824106955,0.7111286,85775.0,85756.0,0.73744]
[1765824106956,0.69947,85758.0,85756.0,0.08333353]
[1765824107259,0.7111312,85756.0,85755.0,0.08333353]
[1765824107456,0.3608,85760.0,85745.0,0.10490733]
[1765824107457,0.69947,85746.0,85745.0,0.10490733]
[1765824107766,0.34076,85745.0,85744.0,0.0116627]
[1765824108059,0.7111328,85744.0,85743.0,0.10490733]
[1765824108259,0.69947,85741.0,85740.0,0.11657073]
[1765824108555,0.34076,85741.0,85740.0,0.3586134]
[1765824108747,0.69947,85749.0,85748.0,0.0116621]
[1765824110154,0.69947,85749.0,85748.0,0.0126621]
[1765824110656,0.69947,85749.0,85748.0,0.001]
[1765824111056,0.69947,85749.0,85748.0,0.003]
[1765824111465,0.69947,85749.0,85748.0,0.001]
[1765824111649,0.69947,85749.0,85748.0,0.003]
[1765824111855,0.69947,85749.0,85748.0,0.06310381]
[1765824112056,0.69947,85749.0,85748.0,0.06510381]
[1765824112358,0.69947,85749.0,85748.0,0.004]
[1765824112760,0.3724621,85750.0,85740.0,0.10441308]
[1765824112761,0.69947,85745.0,85744.0,0.0116628]
[1765824113758,0.69947,85745.0,85744.0,0.6903728]
[1765824113759,0.34076,85745.0,85744.0,0.6903728]
[1765824113962,0.3608,85750.0,85749.0,0.0116621]
[1765824113963,0.70156,85750.0,85749.0,0.0116621]
[1765824114265,1.06027,85750.0,85749.0,0.0116621]
[1765824114465,1.06027,85750.0,85749.0,0.3586121]
[1765824114660,1.06027,85750.0,85749.0,0.6903721]
[1765824114863,0.69947,85745.0,85744.0,0.001]
[1765824115469,0.69947,85745.0,85744.0,0.003]
[1765824116866,0.69947,85745.0,85744.0,0.002]
[1765824117171,0.7216,85750.0,85749.0,0.6903721]
[1765824117668,1.06236,85750.0,85749.0,0.6903721]
[1765824118165,0.7216,85750.0,85749.0,0.6903721]
[1765824118561,0.34093495,85753.0,85752.0,0.0116617]
[1765824118755,0.69964495,85753.0,85752.0,0.0116617]
[1765824119475,0.69947,85750.0,85749.0,0.0116621]
[1765824119675,0.69947,85746.0,85736.0,0.00017495]
[1765824119876,0.69947,85746.0,85745.0,0.3586127]
[1765824120068,0.69964495,85753.0,85752.0,0.0116617]
[1765824120372,0.69964495,85753.0,85752.0,0.0136617]
[1765824120774,0.00017495,85753.0,85752.0,0.8986017]
[1765824121361,0.00017495,85753.0,85752.0,0.9006017]
[1765824121564,0.00017495,85753.0,85752.0,0.004]
[1765824121565,0.69964495,85753.0,85752.0,0.004]
[1765824121764,1.06044495,85753.0,85752.0,0.002]
[1765824121969,0.7072025,85746.0,85745.0,0.001]
[1765824122166,0.7072025,85746.0,85745.0,0.0126627]
[1765824122167,1.05634,85746.0,85745.0,0.0126627]
[1765824122468,0.3608,85746.0,85745.0,0.6985127]
[1765824122662,0.00017495,85753.0,85752.0,0.8952617]
[1765824123268,0.3608,85767.0,85766.0,0.6985098]
[1765824123464,0.4908,85767.0,85766.0,0.6985098]
[1765824123674,1.17264,85767.0,85766.0,0.6985098]
[1765824123977,1.17264,85767.0,85766.0,0.0116598]
[1765824124682,1.17264,85767.0,85766.0,0.0126598]
[1765824124976,0.4908,85767.0,85766.0,0.6995098]
[1765824125476,0.3608,85776.0,85775.0,0.6985086]
[1765824125666,0.09,85776.0,85775.0,0.6985086]
[1765824125872,0.3608,85786.0,85777.0,0.68685]
[1765824126174,1.05497161,85778.0,85777.0,0.68685]
[1765824126477,1.05497161,85778.0,85767.0,0.0116596]
[1765824126478,0.35478,85768.0,85767.0,0.0116596]
[1765824126680,0.68184,85768.0,85766.0,0.003]
[1765824126869,0.6934997,85767.0,85766.0,0.003]
[1765824127069,0.68184,85767.0,85766.0,0.003]
[1765824127271,0.68184,85767.0,85766.0,0.004]
[1765824127966,0.68184,85767.0,85766.0,0.002]
[1765824128478,0.6935008,85759.0,85758.0,0.00017495]
[1765824128777,1.0543008,85759.0,85758.0,0.00017495]
[1765824129275,1.0543008,85759.0,85738.0,0.14604138]
[1765824129276,0.68184,85754.0,85753.0,0.08363443]
[1765824129480,0.87704,85752.0,85751.0,0.08363443]
[1765824129674,0.6935019,85751.0,85750.0,0.17806696]
[1765824129877,0.68184,85750.0,85749.0,0.08363443]
[1765824130184,0.73716,85758.0,85741.0,0.10441308]
[1765824130185,0.00099999,85790.0,85758.0,0.68685]
[1765824130368,0.88106,85800.0,85799.0,0.0116553]
[1765824130569,0.20922,85813.0,85799.0,0.68685]
[1765824130777,0.68184,85805.0,85804.0,0.0116545]
[1765824131072,0.49706,85805.0,85804.0,0.02878258]
[1765824131269,0.00017448,85808.0,85804.0,0.0116545]
[1765824131770,0.00017448,85808.0,85807.0,0.68685]
[1765824131971,8e-08,85808.0,85807.0,0.78685]
[1765824132181,0.00233053,85818.0,85817.0,0.6985029]
[1765824132381,0.68417053,85818.0,85817.0,0.0116529]
[1765824132675,0.00233053,85818.0,85817.0,0.0116529]
[1765824132979,0.00233053,85818.0,85817.0,0.6985029]
[1765824133173,3e-08,85818.0,85817.0,2.24068282]
[1765824133479,3e-08,85818.0,85817.0,0.6985029]
[1765824133779,0.08332736,85855.0,85851.0,0.0116483]
[1765824133780,0.88106,85852.0,85851.0,0.0116483]
[1765824133976,1.10693657,85852.0,85851.0,0.0116483]
[1765824134184,0.79771657,85852.0,85851.0,0.0116483]
[1765824134584,0.79771657,85852.0,85851.0,0.6984983]
[1765824134585,0.11587657,85852.0,85851.0,0.6984983]
[1765824134776,0.02587657,85852.0,85851.0,0.6984983]
[1765824134976,0.02887657,85852.0,85851.0,0.90939311]
[1765824135174,0.003,85852.0,85851.0,0.90939311]
[1765824135374,0.00232944,85858.0,85857.0,0.6984975]
[1765824135574,0.10315804,85890.0,85851.0,0.38553502]
[1765824135575,0.06249552,85880.0,85851.0,0.38553502]
[1765824135775,0.32706,85872.0,85871.0,0.0116456]
[1765824135975,0.3565574,85872.0,85871.0,1.5116456]
[1765824136280,0.3565574,85872.0,85871.0,1.5]
[1765824136484,0.0294974,85872.0,85871.0,1.5]
[1765824136786,0.0294974,85872.0,85871.0,1.8608]
[1765824137481,0.0334974,85872.0,85871.0,1.8608]
[1765824137882,0.00274262,85872.0,85871.0,1.98889867]
[1765824138083,0.11318441,85903.0,85871.0,1.98889867]
[1765824138084,0.08332736,85901.0,85896.0,0.68685]
[1765824138284,0.01002637,85903.0,85888.0,0.00017471]
[1765824138474,0.68184,85889.0,85888.0,0.00017471]
[1765824138671,0.68184,85889.0,85888.0,0.01755685]
[1765824139477,0.32706,85889.0,85888.0,0.01755685]
[1765824139677,0.72706,85889.0,85888.0,0.01755685]
[1765824139883,0.002,85897.0,85889.0,0.0116431]
[1765824140087,0.0116418,85899.0,85888.0,0.01755685]
[1765824140285,0.32706,85889.0,85888.0,0.18079989]
[1765824140482,0.32706,85889.0,85888.0,0.01855685]
[1765824140685,0.32706,85889.0,85888.0,0.03020015]
[1765824140985,0.19922,85901.0,85888.0,0.01855685]
[1765824141183,0.011642,85897.0,85888.0,0.18179989]
[1765824141386,0.011642,85897.0,85888.0,0.18079989]
[1765824141577,0.0116426,85893.0,85888.0,0.01755685]
[1765824141778,0.19922,85901.0,85889.0,0.0116431]
[1765824141978,0.01002637,85903.0,85893.0,0.0116425]
[1765824142186,0.001,85897.0,85896.0,0.68685]
[1765824142685,0.001,85897.0,85896.0,1.04765]
[1765824142985,0.01002637,85903.0,85897.0,0.698492]
[1765824143377,0.01002637,85903.0,85897.0,0.68685]
[1765824143775,0.01002637,85903.0,85897.0,0.80326782]
[1765824143975,0.3608,85927.0,85916.0,0.0116393]
[1765824144286,0.2,85927.0,85918.0,0.3608]
[1765824144678,0.2,85927.0,85914.0,0.0116397]
[1765824144884,0.2,85927.0,85913.0,0.0001746]
[1765824145086,0.0116382,85926.0,85913.0,0.0001746]
[1765824145301,0.68184,85924.0,85923.0,0.0116385]
[1765824145476,0.75184,85924.0,85923.0,0.0116385]
[1765824145679,0.75184,85924.0,85921.0,0.0116388]
[1765824145886,0.68184,85914.0,85913.0,0.0001746]
[1765824146678,0.0116418,85899.0,85897.0,0.0916634]
[1765824146883,0.0116418,85899.0,85888.0,0.48082214]
[1765824146884,0.68184,85892.0,85891.0,0.0116428]
[1765824147085,0.68184,85889.0,85888.0,0.01738214]
[1765824147289,0.0116441,85882.0,85876.0,0.0116448]
[1765824147492,0.0116434,85887.0,85877.0,0.0116446]
[1765824147686,0.68184,85883.0,85882.0,0.011644]
[1765824148284,0.2108633,85888.0,85878.0,0.0116446]
[1765824148285,0.68184,85879.0,85878.0,0.0116446]
[1765824148596,0.68184,85877.0,85876.0,0.01735661]
[1765824148894,0.68184,85875.0,85874.0,0.04258438]
[1765824149390,0.68184,85875.0,85874.0,0.02914085]
[1765824149980,0.68184,85875.0,85874.0,0.03114085]
[1765824150179,0.68184,85875.0,85874.0,0.01949575]
[1765824150393,0.68184,85875.0,85874.0,0.01749575]
[1765824150587,0.68184,85875.0,85874.0,0.002]
[1765824153193,0.89256,85875.0,85874.0,0.01699664]
[1765824153495,0.89256,85875.0,85874.0,0.004]
[1765824153694,0.89256,85875.0,85874.0,0.02106191]
[1765824153889,0.68184,85875.0,85874.0,0.004]
[1765824154705,0.68184,85875.0,85874.0,0.007]
[1765824154998,0.68184,85875.0,85874.0,0.02382694]
[1765824155198,0.68184,85875.0,85874.0,0.05474479]
[1765824155399,0.68184,85875.0,85874.0,0.02382694]
[1765824155698,0.19922,85888.0,85874.0,0.03547194]
[1765824155903,0.69283,85875.0,85874.0,0.05474407]
[1765824156095,0.69283,85875.0,85874.0,0.03547214]
[1765824156698,0.69283,85875.0,85874.0,0.02382694]
[1765824157298,0.0116442,85882.0,85874.0,0.02382694]
[1765824157499,0.33344,85878.0,85877.0,0.04257984]
[1765824157697,0.89355,85878.0,85877.0,0.03093514]
[1765824157901,0.89355,85878.0,85874.0,0.02382694]
[1765824157902,0.704475,85875.0,85874.0,0.02382694]
[1765824158403,0.704475,85875.0,85874.0,0.05079087]
[1765824158602,0.7044754,85872.0,85870.0,0.03096618]
[1765824158905,0.7044754,85872.0,85857.0,0.73896]
[1765824158906,0.7044754,85872.0,85863.0,0.04142658]
[1765824159206,0.7044754,85872.0,85867.0,0.04142658]
[1765824159501,0.7044754,85872.0,85871.0,1.51740475]
[1765824159699,0.7044754,85872.0,85871.0,1.52240475]
[1765824160007,1.4427154,85872.0,85871.0,4.75e-06]
[1765824160320,0.7044777,85855.0,85854.0,0.08367977]
[1765824160612,0.69283,85849.0,85848.0,0.10101599]
[1765824160805,0.69283,85849.0,85848.0,0.01733622]
[1765824161299,0.69283,85849.0,85848.0,0.10101599]
[1765824161695,0.69283,85849.0,85848.0,0.01733622]
[1765824162100,0.69283,85849.0,85848.0,0.1002626]
[1765824162302,0.69283,85849.0,85848.0,0.01833622]
[1765824162806,0.0001747,85857.0,85848.0,0.36647622]
[1765824163106,0.0001747,85857.0,85856.0,1.14510447]
[1765824163297,0.0001747,85857.0,85856.0,1.0621176]
[1765824164408,0.6930047,85857.0,85856.0,0.3724476]
[1765824164706,0.6940047,85857.0,85856.0,0.3724476]
[1765824165008,0.6950047,85857.0,85856.0,0.3724476]
[1765824165505,0.0011747,85857.0,85856.0,1.0621176]
[1765824165704,0.0011747,85857.0,85856.0,1.16753068]
[1765824165900,0.3346147,85857.0,85856.0,1.16753068]
[1765824166102,0.3346147,85857.0,85856.0,1.0631176]
[1765824166301,0.3346147,85857.0,85856.0,1.16753068]
[1765824166703,0.0011747,85857.0,85856.0,1.0631176]
[1765824167098,0.0001747,85857.0,85856.0,1.0631176]
[1765824167406,0.0001747,85857.0,85856.0,1.0641176]
[1765824167609,0.0001747,85857.0,85856.0,1.16706683]
[1765824167797,0.0001747,85857.0,85856.0,1.16806683]
[1765824167994,0.6930047,85857.0,85856.0,0.47839683]
[1765824168402,0.6930047,85857.0,85856.0,0.3744476]
[1765824168814,0.6930047,85857.0,85856.0,0.3754476]
[1765824169299,0.6930047,85857.0,85856.0,0.47739683]
[1765824169801,0.6930047,85857.0,85856.0,0.3734476]
[1765824170005,0.0116423,85895.0,85882.0,0.34814]
[1765824170196,0.2,85891.0,85890.0,0.701313]
[1765824170400,0.76283,85891.0,85890.0,0.720583]
[1765824170603,0.07,85891.0,85890.0,1.062113]
[1765824171107,0.96697,85891.0,85890.0,0.3608]
[1765824171306,0.69283,85883.0,85882.0,0.3609747]
[1765824171502,0.69283,85883.0,85882.0,0.0001747]
[1765824174212,0.69483,85883.0,85882.0,0.0001747]
[1765824174409,0.69683,85883.0,85882.0,0.0001747]
[1765824175203,0.69483,85883.0,85882.0,0.0001747]
[1765824175502,1.43423,85883.0,85882.0,0.0001747]
[1765824176016,0.69683,85883.0,85882.0,0.0001747]
[1765824176199,1.43423,85883.0,85882.0,0.0001747]
[1765824176612,1.43423,85883.0,85868.0,0.08318461]
[1765824176613,0.7044757,85870.0,85868.0,0.08318461]
[1765824176809,0.704476,85868.0,85867.0,0.09483071]
[1765824177014,0.704476,85868.0,85867.0,0.0116461]
[1765824177510,0.7044764,85865.0,85864.0,0.09534124]
[1765824177715,0.7044764,85865.0,85864.0,0.08345707]
[1765824178113,0.69283,85861.0,85860.0,0.3608]
[1765824178316,0.8403871,85860.0,85859.0,0.0001747]
[1765824178622,0.8703871,85860.0,85859.0,0.0001747]
[1765824179712,0.7344771,85860.0,85859.0,0.0001747]
[1765824180315,0.3608,85883.0,85860.0,0.20356]
[1765824180514,0.1701747,85876.0,85875.0,0.34814]
[1765824180712,0.8630047,85876.0,85875.0,0.701315]
[1765824181113,0.1701747,85876.0,85875.0,0.701315]
[1765824181313,0.0601747,85876.0,85875.0,0.701315]
[1765824181618,0.7540047,85876.0,85875.0,0.701315]
[1765824182112,0.7540047,85876.0,85875.0,0.011645]
[1765824182306,0.725725,85875.0,85874.0,0.3608]
[1765824182503,0.35663,85867.0,85866.0,0.3608]
[1765824182707,0.7257269,85861.0,85860.0,0.001]
[1765824183523,1.0865269,85861.0,85860.0,0.001]
[1765824183715,0.71408,85860.0,85859.0,0.0001747]
[1765824184606,0.21072,85884.0,85864.0,0.68323]
[1765824184814,0.71408,85873.0,85872.0,0.0116454]
[1765824185004,0.71408,85873.0,85864.0,0.0116465]
[1765824185005,0.0001747,85876.0,85875.0,0.694875]
[1765824185313,0.3976247,85876.0,85875.0,0.694875]
[1765824185516,0.3976247,85876.0,85871.0,0.3608]
[1765824185517,0.9345854,85872.0,85871.0,0.3608]
[1765824186823,0.71508,85872.0,85871.0,0.3608]
[1765824187010,0.92394,85872.0,85871.0,0.3608]
[1765824187205,0.92394,85872.0,85871.0,0.3724456]
[1765824187703,0.92494,85872.0,85871.0,0.3724456]
[1765824188222,0.92494,85872.0,85871.0,0.45588588]
[1765824188408,0.92494,85872.0,85871.0,0.44424028]
[1765824188810,0.71608,85872.0,85871.0,0.44424028]
[1765824189306,0.71608,85872.0,85871.0,0.3608]
[1765824190222,0.92494,85872.0,85871.0,0.3608]
[1765824190515,0.71408,85866.0,85865.0,0.10398076]
[1765824190715,0.0116464,85865.0,85863.0,0.08348249]
[1765824191023,0.0116464,85865.0,85855.0,0.10398076]
[1765824191024,0.8968671,85860.0,85855.0,0.10398076]
[1765824191314,0.725728,85853.0,85852.0,0.10398076]
[1765824191508,1.086528,85853.0,85851.0,0.10398076]
[1765824191708,0.71408,85852.0,85851.0,0.10398076]
[1765824191909,0.7257283,85851.0,85850.0,0.10398076]
[1765824192515,0.71408,85849.0,85848.0,0.01733622]
[1765824193723,0.71508,85849.0,85848.0,0.01733622]
[1765824193923,0.71508,85849.0,85848.0,0.12171524]
[1765824194119,0.7257294,85843.0,85842.0,0.0001747]
[1765824194312,0.7257294,85843.0,85817.0,0.3724529]
[1765824194313,0.71408,85818.0,85817.0,0.3724529]
[1765824194508,0.71408,85818.0,85817.0,0.0116529]
[1765824194712,0.71408,85824.0,85823.0,0.011652]
[1765824195123,0.35745,85818.0,85817.0,0.3724529]
[1765824195417,0.71408,85818.0,85817.0,0.3608]
[1765824195817,0.71408,85818.0,85817.0,0.37914659]
[1765824196116,8.609e-05,85824.0,85823.0,0.6948821]
[1765824196315,0.35753609,85824.0,85823.0,0.6948821]
[1765824196913,0.71416609,85824.0,85823.0,0.32666]
[1765824197109,8.609e-05,85824.0,85817.0,0.38414659]
[1765824197310,0.71408,85818.0,85817.0,0.02034659]
[1765824197516,0.35745,85818.0,85817.0,0.71945949]
[1765824197716,0.35745,85818.0,85817.0,1.07602949]
[1765824198013,0.71416609,85824.0,85823.0,0.6948821]
[1765824198214,0.71416609,85824.0,85823.0,0.0116521]
[1765824198415,0.71408,85818.0,85817.0,0.37914659]
[1765824198924,0.71408,85818.0,85817.0,0.38414659]
[1765824199427,0.71408,85818.0,85817.0,0.38114659]
[1765824199622,0.71408,85818.0,85817.0,0.02034659]
[1765824200022,0.71408,85818.0,85817.0,0.02334659]
[1765824200519,0.7257338,85810.0,85809.0,0.01835611]
[1765824200717,1.4628138,85810.0,85809.0,0.0001747]
[1765824201017,0.0116529,85817.0,85812.0,0.19775]
[1765824201219,0.35745,85810.0,85809.0,0.01790694]
[1765824201523,0.71408,85810.0,85809.0,0.01790694]
[1765824201715,0.71508,85810.0,85809.0,0.01790694]
[1765824202317,0.71508,85810.0,85800.0,4e-05]
[1765824202318,0.7257351,85801.0,85800.0,4e-05]
[1765824202517,1.0865351,85801.0,85800.0,4e-05]
[1765824202725,0.7257361,85793.0,85792.0,0.00014438]
[1765824202930,0.72582219,85793.0,85792.0,0.01842772]
[1765824203324,0.7257378,85781.0,85780.0,0.3608]
[1765824203621,0.7257386,85775.0,85774.0,0.3608]
[1765824203822,0.7257386,85775.0,85774.0,0.37884642]
[1765824204122,0.71408,85775.0,85774.0,0.37884642]
[1765824205114,0.71508,85775.0,85774.0,0.01804642]
[1765824205432,0.71408,85773.0,85772.0,0.0001175]
[1765824205626,0.7257408,85759.0,85758.0,0.08316275]
[1765824205922,0.7257412,85756.0,85750.0,4e-05]
[1765824206122,0.71408,85751.0,85750.0,4e-05]
[1765824206621,0.71408,85751.0,85750.0,0.01797329]
[1765824206817,0.71408,85751.0,85750.0,4e-05]
[1765824207427,0.71408,85751.0,85750.0,0.01760429]
[1765824207618,0.71408,85751.0,85750.0,0.01750759]
[1765824207819,0.71408,85747.0,85746.0,0.3608]
[1765824208216,0.71408,85747.0,85746.0,0.37895354]
[1765824208416,0.71408,85743.0,85742.0,0.00015104]
[1765824208632,1.45136,85743.0,85742.0,0.00015104]
[1765824209228,0.71408,85733.0,85732.0,0.01002637]
[1765824209429,1.4630243,85733.0,85732.0,0.01002637]
[1765824209629,1.4630243,85733.0,85732.0,0.02808469]
[1765824210420,0.68030491,85741.0,85740.0,0.0116634]
[1765824210622,0.73737491,85741.0,85740.0,1.0581334]
[1765824210822,0.00017491,85741.0,85740.0,1.0581334]
[1765824211026,0.65417491,85741.0,85740.0,1.0581334]
[1765824211224,0.68013,85733.0,85732.0,0.01202637]
[1765824211420,0.6917955,85724.0,85723.0,0.3608]
[1765824211620,1.41749,85724.0,85723.0,0.37895971]
[1765824212632,1.41849,85724.0,85723.0,0.37895971]
[1765824213139,1.41749,85724.0,85723.0,0.37895971]
[1765824213438,1.42249,85724.0,85723.0,0.37895971]
[1765824215433,1.42249,85724.0,85723.0,0.01815971]
[1765824215630,0.005,85724.0,85723.0,0.66557]